Workbook

Sheet Sheet1
A1: t= | B1: 0.128 | D1: dt= | E1: =0.0001 -> 0.0001
A2: t+dt=tp | B2: =t+dt -> 0.1281 | D2: deltat= | E2: =PI()/128 -> 0.02454369261
A3: t-dt=tm | B3: =t-dt -> 0.1279
C4: =EXP(-5*t)*2 -> 1.054584848 | F4: =EXP(-5*tp)*2 -> 1.054057687 | I4: =EXP(-5*tm)*2 -> 1.055112272 | L4: =(F4-I4)/2/dt -> -5.27292446
B5: x(t)= | C5: =EXP(-5*t)*(2*t+1)+2*EXP(-4*t)*(t*COS(3*t)-SIN(3*t)) -> 0.3554950495 | E5: x(t+td)= | F5: =EXP(-5*tp)*(2*tp+1)+2*EXP(-4*tp)*(tp*COS(3*tp)-SIN(3*tp)) -> 0.3551526804 | H5: x(t-td)= | I5: =EXP(-5*tm)*(2*tm+1)+2*EXP(-4*tm)*(tm*COS(3*tm)-SIN(3*tm)) -> 0.3558376219 | K5: dx/dt= | L5: =(F5-I5)/2/dt -> -3.42470744 | N5: Kırmızı kutular eşleşmeli.
C6: =EXP(-4*t)*3*(COS(3*t)+t*SIN(3*t)) -> 1.753167511 | F6: =EXP(-4*tp)*3*(COS(3*tp)+tp*SIN(3*tp)) -> 1.752395685 | I6: =EXP(-4*tm)*3*(COS(3*tm)+tm*SIN(3*tm)) -> 1.753939616 | L6: =(F6-I6)/2/dt -> -7.719652829
C7: =EXP(-4*t)*(t*COS(3*t)-SIN(3*t)) -> -0.1533921176 | F7: =EXP(-4*tp)*(tp*COS(3*tp)-SIN(3*tp)) -> -0.1534504766 | I7: =EXP(-4*tm)*(tm*COS(3*tm)-SIN(3*tm)) -> -0.153333687 | L7: =(F7-I7)/2/dt -> -0.5839479293
F8: Bu iki vektör makro çalışınca oluşuyor.
A9: Yeşil kutular doldurulup düğmeye basılmalı.
C11: -5 | D11: 0 | E11: 0 | F11: 0 | I11: 0 | L11: =MMULT(C11:F14,C4:C7) -> -5.27292424 | O11: =L11+I11 -> -5.27292424
B12: A= | C12: 1 | D12: -5 | E12: -2 | F12: 2 | H12: f= | I12: =2*EXP(-4*t)*COS(3*t) -> 1.11130238 | K12: Ax= | L12: -4.536009656 | N12: Ax+f= | O12: =L12+I12 -> -3.424707276
C13: 0 | D13: 0 | E13: -4 | F13: 9 | I13: =3*EXP(-4*t)*SIN(3*t) -> 0.6735464097 | L13: -8.393199102 | O13: =L13+I13 -> -7.719652692
C14: 0 | D14: 0 | E14: -1 | F14: -4 | I14: =I12/2 -> 0.5556511901 | L14: -1.139599041 | O14: =L14+I14 -> -0.5839478505
B17: t | C17: x1 | D17: x2 | E17: x3 | F17: x4
B18: 0 | C18: =EXP(-5*tt)*2 -> 2 | D18: =EXP(-5*tt)*(2*tt+1)+2*EXP(-4*tt)*(tt*COS(3*tt)-SIN(3*tt)) -> 1 | E18: =EXP(-4*tt)*3*(COS(3*tt)+tt*SIN(3*tt)) -> 3 | F18: =EXP(-4*tt)*(tt*COS(3*tt)-SIN(3*tt)) -> 0
B19: =B18+deltat -> 0.02454369261 | C19: =EXP(-5*tt)*2 -> 1.769025301 | D19: =EXP(-5*tt)*(2*tt+1)+2*EXP(-4*tt)*(tt*COS(3*tt)-SIN(3*tt)) -> 0.8389365925 | E19: =EXP(-4*tt)*3*(COS(3*tt)+tt*SIN(3*tt)) -> 2.717012992 | F19: =EXP(-4*tt)*(tt*COS(3*tt)-SIN(3*tt)) -> -0.04449723561
B20: =B19+deltat -> 0.04908738521 | C20: =EXP(-5*tt)*2 -> 1.564725258 | D20: =EXP(-5*tt)*(2*tt+1)+2*EXP(-4*tt)*(tt*COS(3*tt)-SIN(3*tt)) -> 0.6978262139 | E20: =EXP(-4*tt)*3*(COS(3*tt)+tt*SIN(3*tt)) -> 2.456248785 | F20: =EXP(-4*tt)*(tt*COS(3*tt)-SIN(3*tt)) -> -0.08067234327
B21: =B20+deltat -> 0.07363107782 | C21: =EXP(-5*tt)*2 -> 1.384019285 | D21: =EXP(-5*tt)*(2*tt+1)+2*EXP(-4*tt)*(tt*COS(3*tt)-SIN(3*tt)) -> 0.5745338288 | E21: =EXP(-4*tt)*3*(COS(3*tt)+tt*SIN(3*tt)) -> 2.216411064 | F21: =EXP(-4*tt)*(tt*COS(3*tt)-SIN(3*tt)) -> -0.1096913228
B22: =B21+deltat -> 0.09817477042 | C22: =EXP(-5*tt)*2 -> 1.224182566 | D22: =EXP(-5*tt)*(2*tt+1)+2*EXP(-4*tt)*(tt*COS(3*tt)-SIN(3*tt)) -> 0.4671287344 | E22: =EXP(-4*tt)*3*(COS(3*tt)+tt*SIN(3*tt)) -> 1.996199498 | F22: =EXP(-4*tt)*(tt*COS(3*tt)-SIN(3*tt)) -> -0.1325731956
B23: =B22+deltat -> 0.122718463 | C23: =EXP(-5*tt)*2 -> 1.082804966 | D23: =EXP(-5*tt)*(2*tt+1)+2*EXP(-4*tt)*(tt*COS(3*tt)-SIN(3*tt)) -> 0.3738687394 | E23: =EXP(-4*tt)*3*(COS(3*tt)+tt*SIN(3*tt)) -> 1.794330719 | F23: =EXP(-4*tt)*(tt*COS(3*tt)-SIN(3*tt)) -> -0.1502069525
B24: =B23+deltat -> 0.1472621556 | C24: =EXP(-5*tt)*2 -> 0.9577546909 | D24: =EXP(-5*tt)*(2*tt+1)+2*EXP(-4*tt)*(tt*COS(3*tt)-SIN(3*tt)) -> 0.2931846375 | E24: =EXP(-4*tt)*3*(COS(3*tt)+tt*SIN(3*tt)) -> 1.609554158 | F24: =EXP(-4*tt)*(tt*COS(3*tt)-SIN(3*tt)) -> -0.1633668642
B25: =B24+deltat -> 0.1718058482 | C25: =EXP(-5*tt)*2 -> 0.8471461402 | D25: =EXP(-5*tt)*(2*tt+1)+2*EXP(-4*tt)*(tt*COS(3*tt)-SIN(3*tt)) -> 0.2236652346 | E25: =EXP(-4*tt)*3*(COS(3*tt)+tt*SIN(3*tt)) -> 1.440663633 | F25: =EXP(-4*tt)*(tt*COS(3*tt)-SIN(3*tt)) -> -0.1727262483
B26: =B25+deltat -> 0.1963495408 | C26: =EXP(-5*tt)*2 -> 0.7493114778 | D26: =EXP(-5*tt)*(2*tt+1)+2*EXP(-4*tt)*(tt*COS(3*tt)-SIN(3*tt)) -> 0.1640431105 | E26: =EXP(-4*tt)*3*(COS(3*tt)+tt*SIN(3*tt)) -> 1.28650544 | F26: =EXP(-4*tt)*(tt*COS(3*tt)-SIN(3*tt)) -> -0.1788697965
B27: =B26+deltat -> 0.2208932335 | C27: =EXP(-5*tt)*2 -> 0.6627754813 | D27: =EXP(-5*tt)*(2*tt+1)+2*EXP(-4*tt)*(tt*COS(3*tt)-SIN(3*tt)) -> 0.1131812304 | E27: =EXP(-4*tt)*3*(COS(3*tt)+tt*SIN(3*tt)) -> 1.145983642 | F27: =EXP(-4*tt)*(tt*COS(3*tt)-SIN(3*tt)) -> -0.1823045647
B28: =B27+deltat -> 0.2454369261 | C28: =EXP(-5*tt)*2 -> 0.5862332977 | D28: =EXP(-5*tt)*(2*tt+1)+2*EXP(-4*tt)*(tt*COS(3*tt)-SIN(3*tt)) -> 0.07006047698 | E28: =EXP(-4*tt)*3*(COS(3*tt)+tt*SIN(3*tt)) -> 1.018063081 | F28: =EXP(-4*tt)*(tt*COS(3*tt)-SIN(3*tt)) -> -0.1834697352
B29: =B28+deltat -> 0.2699806187 | C29: =EXP(-5*tt)*2 -> 0.5185307679 | D29: =EXP(-5*tt)*(2*tt+1)+2*EXP(-4*tt)*(tt*COS(3*tt)-SIN(3*tt)) -> 0.03376813053 | E29: =EXP(-4*tt)*3*(COS(3*tt)+tt*SIN(3*tt)) -> 0.9017706238 | F29: =EXP(-4*tt)*(tt*COS(3*tt)-SIN(3*tt)) -> -0.1827452555
B30: =B29+deltat -> 0.2945243113 | C30: =EXP(-5*tt)*2 -> 0.4586470239 | D30: =EXP(-5*tt)*(2*tt+1)+2*EXP(-4*tt)*(tt*COS(3*tt)-SIN(3*tt)) -> 0.003487297333 | E30: =EXP(-4*tt)*3*(COS(3*tt)+tt*SIN(3*tt)) -> 0.7961950216 | F30: =EXP(-4*tt)*(tt*COS(3*tt)-SIN(3*tt)) -> -0.1804594567
B31: =B30+deltat -> 0.3190680039 | C31: =EXP(-5*tt)*2 -> 0.4056790948 | D31: =EXP(-5*tt)*(2*tt+1)+2*EXP(-4*tt)*(tt*COS(3*tt)-SIN(3*tt)) -> -0.02151273481 | E31: =EXP(-4*tt)*3*(COS(3*tt)+tt*SIN(3*tt)) -> 0.7004857336 | F31: =EXP(-4*tt)*(tt*COS(3*tt)-SIN(3*tt)) -> -0.1768957506
B32: =B31+deltat -> 0.3436116965 | C32: =EXP(-5*tt)*2 -> 0.3588282914 | D32: =EXP(-5*tt)*(2*tt+1)+2*EXP(-4*tt)*(tt*COS(3*tt)-SIN(3*tt)) -> -0.04188525266 | E32: =EXP(-4*tt)*3*(COS(3*tt)+tt*SIN(3*tt)) -> 0.6138509789 | F32: =EXP(-4*tt)*(tt*COS(3*tt)-SIN(3*tt)) -> -0.1722984982
B33: =B32+deltat -> 0.3681553891 | C33: =EXP(-5*tt)*2 -> 0.3173881631 | D33: =EXP(-5*tt)*(2*tt+1)+2*EXP(-4*tt)*(tt*COS(3*tt)-SIN(3*tt)) -> -0.05821403342 | E33: =EXP(-4*tt)*3*(COS(3*tt)+tt*SIN(3*tt)) -> 0.5355552523 | F33: =EXP(-4*tt)*(tt*COS(3*tt)-SIN(3*tt)) -> -0.1668781388
B34: =B33+deltat -> 0.3926990817 | C34: =EXP(-5*tt)*2 -> 0.2807338454 | D34: =EXP(-5*tt)*(2*tt+1)+2*EXP(-4*tt)*(tt*COS(3*tt)-SIN(3*tt)) -> -0.07102047614 | E34: =EXP(-4*tt)*3*(COS(3*tt)+tt*SIN(3*tt)) -> 0.4649164838 | F34: =EXP(-4*tt)*(tt*COS(3*tt)-SIN(3*tt)) -> -0.1608156611 | H34: X matrisinde hücreye referans kullanmayın. Zira makro çalışınca alttaki X(t+-dt) matrisleri doldurulacak.
B35: =B34+deltat -> 0.4172427743 | C35: =EXP(-5*tt)*2 -> 0.2483126377 | D35: =EXP(-5*tt)*(2*tt+1)+2*EXP(-4*tt)*(tt*COS(3*tt)-SIN(3*tt)) -> -0.08077000808 | E35: =EXP(-4*tt)*3*(COS(3*tt)+tt*SIN(3*tt)) -> 0.4013029887 | F35: =EXP(-4*tt)*(tt*COS(3*tt)-SIN(3*tt)) -> -0.1542664904 | I35: 0 | J35: =EXP(-5*t) -> 0.527292424 | K35: 0 | L35: 0 | O35: =-O36*(1+t) -> -2.139230432 | P35: =O36 -> 1.896480879 | Q35: =0 -> 0 | R35: =-2*O36 -> -3.792961759
B36: =B35+deltat -> 0.4417864669 | C36: =EXP(-5*tt)*2 -> 0.2196356693 | D36: =EXP(-5*tt)*(2*tt+1)+2*EXP(-4*tt)*(tt*COS(3*tt)-SIN(3*tt)) -> -0.08787782649 | E36: =EXP(-4*tt)*3*(COS(3*tt)+tt*SIN(3*tt)) -> 0.3441303246 | F36: =EXP(-4*tt)*(tt*COS(3*tt)-SIN(3*tt)) -> -0.1473638637 | H36: X= | I36: =EXP(-5*t) -> 0.527292424 | J36: =EXP(-5*t)*(1+t) -> 0.5947858543 | K36: =EXP(-4*t)*2*COS(3*t) -> 1.11130238 | L36: =EXP(-4*t)*2*SIN(3*t) -> 0.4490309398 | N36: X-1= | O36: =EXP(5*t) -> 1.896480879 | P36: 0 | Q36: =0 -> 0 | R36: 0
B37: =B36+deltat -> 0.4663301595 | C37: =EXP(-5*tt)*2 -> 0.194270528 | D37: =EXP(-5*tt)*(2*tt+1)+2*EXP(-4*tt)*(tt*COS(3*tt)-SIN(3*tt)) -> -0.09271403634 | E37: =EXP(-4*tt)*3*(COS(3*tt)+tt*SIN(3*tt)) -> 0.2928581419 | F37: =EXP(-4*tt)*(tt*COS(3*tt)-SIN(3*tt)) -> -0.1402217533 | I37: 0 | J37: 0 | K37: =EXP(-4*t)*3*SIN(3*t) -> 0.6735464097 | L37: =-EXP(-4*t)*3*COS(3*t) -> -1.66695357 | O37: 0 | P37: 0 | Q37: =EXP(4*t)*SIN(3*t)/3 -> 0.2083735379 | R37: =EXP(4*t)*(COS(3*t)) -> 1.547105031
B38: =B37+deltat -> 0.4908738521 | C38: =EXP(-5*tt)*2 -> 0.1718347396 | D38: =EXP(-5*tt)*(2*tt+1)+2*EXP(-4*tt)*(tt*COS(3*tt)-SIN(3*tt)) -> -0.09560824216 | E38: =EXP(-4*tt)*3*(COS(3*tt)+tt*SIN(3*tt)) -> 0.2469870968 | F38: =EXP(-4*tt)*(tt*COS(3*tt)-SIN(3*tt)) -> -0.1329373963 | I38: 0 | J38: 0 | K38: =EXP(-4*t)*COS(3*t) -> 0.5556511901 | L38: =EXP(-4*t)*SIN(3*t) -> 0.2245154699 | O38: 0 | P38: 0 | Q38: =-EXP(4*t)*COS(3*t)/3 -> -0.515701677 | R38: =EXP(4*t)*(SIN(3*t)) -> 0.6251206137
B39: =B38+deltat -> 0.5154175447 | C39: =EXP(-5*tt)*2 -> 0.151990001 | D39: =EXP(-5*tt)*(2*tt+1)+2*EXP(-4*tt)*(tt*COS(3*tt)-SIN(3*tt)) -> -0.09685364955 | E39: =EXP(-4*tt)*3*(COS(3*tt)+tt*SIN(3*tt)) -> 0.2060558743 | F39: =EXP(-4*tt)*(tt*COS(3*tt)-SIN(3*tt)) -> -0.1255934816
B40: =B39+deltat -> 0.5399612373 | C40: =EXP(-5*tt)*2 -> 0.1344370787 | D40: =EXP(-5*tt)*(2*tt+1)+2*EXP(-4*tt)*(tt*COS(3*tt)-SIN(3*tt)) -> -0.09671072847 | E40: =EXP(-4*tt)*3*(COS(3*tt)+tt*SIN(3*tt)) -> 0.1696383544 | F40: =EXP(-4*tt)*(tt*COS(3*tt)-SIN(3*tt)) -> -0.1182600396 | I40: =MMULT(I35:L38,O35:R38) -> 1 | J40: 0 | K40: 0 | L40: 0 | N40: Bu X ve X-1 matrisleri sağlama yapmak gerekiyorsa kullanılmalı.
B41: =B40+deltat -> 0.5645049299 | C41: =EXP(-5*tt)*2 -> 0.1189112968 | D41: =EXP(-5*tt)*(2*tt+1)+2*EXP(-4*tt)*(tt*COS(3*tt)-SIN(3*tt)) -> -0.09541048649 | E41: =EXP(-4*tt)*3*(COS(3*tt)+tt*SIN(3*tt)) -> 0.137340944 | F41: =EXP(-4*tt)*(tt*COS(3*tt)-SIN(3*tt)) -> -0.1109960741 | H41: X.X-1= | I41: 0 | J41: 1 | K41: 0 | L41: -3.330669074e-16 | N41: Birim matris çıkmalı.
B42: =B41+deltat -> 0.5890486225 | C42: =EXP(-5*tt)*2 -> 0.1051785463 | D42: =EXP(-5*tt)*(2*tt+1)+2*EXP(-4*tt)*(tt*COS(3*tt)-SIN(3*tt)) -> -0.09315739598 | E42: =EXP(-4*tt)*3*(COS(3*tt)+tt*SIN(3*tt)) -> 0.1088000862 | F42: =EXP(-4*tt)*(tt*COS(3*tt)-SIN(3*tt)) -> -0.1038509735 | I42: 0 | J42: 0 | K42: 1 | L42: -2.220446049e-16
B43: =B42+deltat -> 0.6135923152 | C43: =EXP(-5*tt)*2 -> 0.09303175475 | D43: =EXP(-5*tt)*(2*tt+1)+2*EXP(-4*tt)*(tt*COS(3*tt)-SIN(3*tt)) -> -0.09013201537 | E43: =EXP(-4*tt)*3*(COS(3*tt)+tt*SIN(3*tt)) -> 0.08367995178 | F43: =EXP(-4*tt)*(tt*COS(3*tt)-SIN(3*tt)) -> -0.09686573126 | I43: 0 | J43: 0 | K43: 0 | L43: 1
B44: =B43+deltat -> 0.6381360078 | C44: =EXP(-5*tt)*2 -> 0.08228776397 | D44: =EXP(-5*tt)*(2*tt+1)+2*EXP(-4*tt)*(tt*COS(3*tt)-SIN(3*tt)) -> -0.08649334024 | E44: =EXP(-4*tt)*3*(COS(3*tt)+tt*SIN(3*tt)) -> 0.06167031096 | F44: =EXP(-4*tt)*(tt*COS(3*tt)-SIN(3*tt)) -> -0.09007400371
B45: =B44+deltat -> 0.6626797004 | C45: =EXP(-5*tt)*2 -> 0.07278456822 | D45: =EXP(-5*tt)*(2*tt+1)+2*EXP(-4*tt)*(tt*COS(3*tt)-SIN(3*tt)) -> -0.08238091637 | E45: =EXP(-4*tt)*3*(COS(3*tt)+tt*SIN(3*tt)) -> 0.04248458146 | F45: =EXP(-4*tt)*(tt*COS(3*tt)-SIN(3*tt)) -> -0.08350302817 | I45: Bu iki matris makro çalıştırılınca oluşuyor:
B46: =B45+deltat -> 0.687223393 | C46: =EXP(-5*tt)*2 -> 0.06437887135 | D46: =EXP(-5*tt)*(2*tt+1)+2*EXP(-4*tt)*(tt*COS(3*tt)-SIN(3*tt)) -> -0.07791674303 | E46: =EXP(-4*tt)*3*(COS(3*tt)+tt*SIN(3*tt)) -> 0.02585804311 | F46: =EXP(-4*tt)*(tt*COS(3*tt)-SIN(3*tt)) -> -0.07717442255 | I46: 0 | J46: =EXP(-5*tp) -> 0.5270288437 | K46: 0 | L46: 0 | O46: 0 | P46: =EXP(-5*tm) -> 0.5275561362 | Q46: 0 | R46: 0
B47: =B46+deltat -> 0.7117670856 | C47: =EXP(-5*tt)*2 -> 0.05694392614 | D47: =EXP(-5*tt)*(2*tt+1)+2*EXP(-4*tt)*(tt*COS(3*tt)-SIN(3*tt)) -> -0.07320699142 | E47: =EXP(-4*tt)*3*(COS(3*tt)+tt*SIN(3*tt)) -> 0.01154620924 | F47: =EXP(-4*tt)*(tt*COS(3*tt)-SIN(3*tt)) -> -0.07110488342 | H47: X(t+dt)= | I47: =EXP(-5*tp) -> 0.5270288437 | J47: =EXP(-5*tp)*(1+tp) -> 0.5945412386 | K47: =EXP(-4*tp)*2*COS(3*tp) -> 1.110723243 | L47: =EXP(-4*tp)*2*SIN(3*tp) -> 0.4491846005 | N47: X(t-dt)= | O47: =EXP(-5*tm) -> 0.5275561362 | P47: =EXP(-5*tm)*(1+tm) -> 0.595030566 | Q47: =EXP(-4*tm)*2*COS(3*tm) -> 1.111881703 | R47: =EXP(-4*tm)*2*SIN(3*tm) -> 0.4488770438
B48: =B47+deltat -> 0.7363107782 | C48: =EXP(-5*tt)*2 -> 0.05036762304 | D48: =EXP(-5*tt)*(2*tt+1)+2*EXP(-4*tt)*(tt*COS(3*tt)-SIN(3*tt)) -> -0.06834356016 | E48: =EXP(-4*tt)*3*(COS(3*tt)+tt*SIN(3*tt)) -> -0.0006766570181 | F48: =EXP(-4*tt)*(tt*COS(3*tt)-SIN(3*tt)) -> -0.0653067977 | I48: 0 | J48: 0 | K48: =EXP(-4*tp)*3*SIN(3*tp) -> 0.6737769008 | L48: =-EXP(-4*tp)*3*COS(3*tp) -> -1.666084864 | O48: 0 | P48: 0 | Q48: =EXP(-4*tm)*3*SIN(3*tm) -> 0.6733155657 | R48: =-EXP(-4*tm)*3*COS(3*tm) -> -1.667822555
B49: =B48+deltat -> 0.7608544708 | C49: =EXP(-5*tt)*2 -> 0.04455079975 | D49: =EXP(-5*tt)*(2*tt+1)+2*EXP(-4*tt)*(tt*COS(3*tt)-SIN(3*tt)) -> -0.06340548667 | E49: =EXP(-4*tt)*3*(COS(3*tt)+tt*SIN(3*tt)) -> -0.01101889379 | F49: =EXP(-4*tt)*(tt*COS(3*tt)-SIN(3*tt)) -> -0.05978878086 | I49: 0 | J49: 0 | K49: =EXP(-4*tp)*COS(3*tp) -> 0.5553616214 | L49: =EXP(-4*tp)*SIN(3*tp) -> 0.2245923003 | O49: 0 | P49: 0 | Q49: =EXP(-4*tm)*COS(3*tm) -> 0.5559408516 | R49: =EXP(-4*tm)*SIN(3*tm) -> 0.2244385219
B50: =B49+deltat -> 0.7853981634 | C50: =EXP(-5*tt)*2 -> 0.03940574597 | D50: =EXP(-5*tt)*(2*tt+1)+2*EXP(-4*tt)*(tt*COS(3*tt)-SIN(3*tt)) -> -0.05846023083 | E50: =EXP(-4*tt)*3*(COS(3*tt)+tt*SIN(3*tt)) -> -0.01967267138 | F50: =EXP(-4*tt)*(tt*COS(3*tt)-SIN(3*tt)) -> -0.05455615216
B51: =B50+deltat -> 0.809941856 | C51: =EXP(-5*tt)*2 -> 0.03485488082 | D51: =EXP(-5*tt)*(2*tt+1)+2*EXP(-4*tt)*(tt*COS(3*tt)-SIN(3*tt)) -> -0.05356484521 | E51: =EXP(-4*tt)*3*(COS(3*tt)+tt*SIN(3*tt)) -> -0.02681511516 | F51: =EXP(-4*tt)*(tt*COS(3*tt)-SIN(3*tt)) -> -0.04961135624 | I51: =(I46-O46)/2/$E$1 -> 0 | J51: -2.63646223 | K51: 0 | L51: 0 | O51: =MMULT(C11:F14,I35:L38) -> 0 | P51: -2.63646212 | Q51: 0 | R51: 0
B52: =B51+deltat -> 0.8344855486 | C52: =EXP(-5*tt)*2 -> 0.03082958301 | D52: =EXP(-5*tt)*(2*tt+1)+2*EXP(-4*tt)*(tt*COS(3*tt)-SIN(3*tt)) -> -0.04876704391 | E52: =EXP(-4*tt)*3*(COS(3*tt)+tt*SIN(3*tt)) -> -0.032609332 | F52: =EXP(-4*tt)*(tt*COS(3*tt)-SIN(3*tt)) -> -0.04495433846 | H52: dX/dt= | I52: -2.63646223 | J52: -2.446636906 | K52: -5.792302347 | L52: 1.537783631 | N52: A.X= | O52: -2.63646212 | P52: -2.446636848 | Q52: -5.792302341 | R52: 1.537783382
B53: =B52+deltat -> 0.8590292412 | C53: =EXP(-5*tt)*2 -> 0.02726915619 | D53: =EXP(-5*tt)*(2*tt+1)+2*EXP(-4*tt)*(tt*COS(3*tt)-SIN(3*tt)) -> -0.04410618036 | E53: =EXP(-4*tt)*3*(COS(3*tt)+tt*SIN(3*tt)) -> -0.03720535119 | F53: =EXP(-4*tt)*(tt*COS(3*tt)-SIN(3*tt)) -> -0.0405828805 | I53: 0 | J53: 0 | K53: 2.306675447 | L53: 8.68845352 | O53: 0 | P53: 0 | Q53: 2.306675072 | R53: 8.688453511
B54: =B53+deltat -> 0.8835729338 | C54: =EXP(-5*tt)*2 -> 0.02411991362 | D54: =EXP(-5*tt)*(2*tt+1)+2*EXP(-4*tt)*(tt*COS(3*tt)-SIN(3*tt)) -> -0.03961414328 | E54: =EXP(-4*tt)*3*(COS(3*tt)+tt*SIN(3*tt)) -> -0.04074098984 | F54: =EXP(-4*tt)*(tt*COS(3*tt)-SIN(3*tt)) -> -0.03649290146 | I54: 0 | J54: 0 | K54: -2.896151173 | L54: 0.7688918156 | O54: 0 | P54: 0 | Q54: -2.89615117 | R54: 0.7688916908
B55: =B54+deltat -> 0.9081166264 | C55: =EXP(-5*tt)*2 -> 0.02133436872 | D55: =EXP(-5*tt)*(2*tt+1)+2*EXP(-4*tt)*(tt*COS(3*tt)-SIN(3*tt)) -> -0.03531617808 | E55: =EXP(-4*tt)*3*(COS(3*tt)+tt*SIN(3*tt)) -> -0.04334265186 | F55: =EXP(-4*tt)*(tt*COS(3*tt)-SIN(3*tt)) -> -0.0326787287
B56: =B55+deltat -> 0.932660319 | C56: =EXP(-5*tt)*2 -> 0.01887051903 | D56: =EXP(-5*tt)*(2*tt+1)+2*EXP(-4*tt)*(tt*COS(3*tt)-SIN(3*tt)) -> -0.03123164062 | E56: =EXP(-4*tt)*3*(COS(3*tt)+tt*SIN(3*tt)) -> -0.04512606857 | F56: =EXP(-4*tt)*(tt*COS(3*tt)-SIN(3*tt)) -> -0.02913334221 | L56: Homojen kısmın kontrolü için son iki kırmızı matris eşleşmeli.
B57: =B56+deltat -> 0.9572040116 | C57: =EXP(-5*tt)*2 -> 0.0166912128 | D57: =EXP(-5*tt)*(2*tt+1)+2*EXP(-4*tt)*(tt*COS(3*tt)-SIN(3*tt)) -> -0.02737468865 | E57: =EXP(-4*tt)*3*(COS(3*tt)+tt*SIN(3*tt)) -> -0.04619698823 | F57: =EXP(-4*tt)*(tt*COS(3*tt)-SIN(3*tt)) -> -0.02584859545
B58: =B57+deltat -> 0.9817477042 | C58: =EXP(-5*tt)*2 -> 0.01476358887 | D58: =EXP(-5*tt)*(2*tt+1)+2*EXP(-4*tt)*(tt*COS(3*tt)-SIN(3*tt)) -> -0.02375491613 | E58: =EXP(-4*tt)*3*(COS(3*tt)+tt*SIN(3*tt)) -> -0.04665182062 | F58: =EXP(-4*tt)*(tt*COS(3*tt)-SIN(3*tt)) -> -0.02281541503
B59: =B58+deltat -> 1.006291397 | C59: =EXP(-5*tt)*2 -> 0.01305858113 | D59: =EXP(-5*tt)*(2*tt+1)+2*EXP(-4*tt)*(tt*COS(3*tt)-SIN(3*tt)) -> -0.0203779344 | E59: =EXP(-4*tt)*3*(COS(3*tt)+tt*SIN(3*tt)) -> -0.04657824213 | F59: =EXP(-4*tt)*(tt*COS(3*tt)-SIN(3*tt)) -> -0.0200239814
B60: =B59+deltat -> 1.030835089 | C60: =EXP(-5*tt)*2 -> 0.0115504802 | D60: =EXP(-5*tt)*(2*tt+1)+2*EXP(-4*tt)*(tt*COS(3*tt)-SIN(3*tt)) -> -0.01724590414 | E60: =EXP(-4*tt)*3*(COS(3*tt)+tt*SIN(3*tt)) -> -0.04605576589 | F60: =EXP(-4*tt)*(tt*COS(3*tt)-SIN(3*tt)) -> -0.01746389227
B61: =B60+deltat -> 1.055378782 | C61: =EXP(-5*tt)*2 -> 0.01021654586 | D61: =EXP(-5*tt)*(2*tt+1)+2*EXP(-4*tt)*(tt*COS(3*tt)-SIN(3*tt)) -> -0.01435802132 | E61: =EXP(-4*tt)*3*(COS(3*tt)+tt*SIN(3*tt)) -> -0.04515628078 | F61: =EXP(-4*tt)*(tt*COS(3*tt)-SIN(3*tt)) -> -0.01512430999
B62: =B61+deltat -> 1.079922475 | C62: =EXP(-5*tt)*2 -> 0.009036664058 | D62: =EXP(-5*tt)*(2*tt+1)+2*EXP(-4*tt)*(tt*COS(3*tt)-SIN(3*tt)) -> -0.01171096024 | E62: =EXP(-4*tt)*3*(COS(3*tt)+tt*SIN(3*tt)) -> -0.04394456249 | F62: =EXP(-4*tt)*(tt*COS(3*tt)-SIN(3*tt)) -> -0.01299409444
B63: =B62+deltat -> 1.104466167 | C63: =EXP(-5*tt)*2 -> 0.007993043678 | D63: =EXP(-5*tt)*(2*tt+1)+2*EXP(-4*tt)*(tt*COS(3*tt)-SIN(3*tt)) -> -0.009299276265 | E63: =EXP(-4*tt)*3*(COS(3*tt)+tt*SIN(3*tt)) -> -0.04247875925 | F63: =EXP(-4*tt)*(tt*COS(3*tt)-SIN(3*tt)) -> -0.01106192221
B64: =B63+deltat -> 1.12900986 | C64: =EXP(-5*tt)*2 -> 0.007069948249 | D64: =EXP(-5*tt)*(2*tt+1)+2*EXP(-4*tt)*(tt*COS(3*tt)-SIN(3*tt)) -> -0.007115770774 | E64: =EXP(-4*tt)*3*(COS(3*tt)+tt*SIN(3*tt)) -> -0.04081085423 | F64: =EXP(-4*tt)*(tt*COS(3*tt)-SIN(3*tt)) -> -0.009316393091
B65: =B64+deltat -> 1.153553552 | C65: =EXP(-5*tt)*2 -> 0.006253458665 | D65: =EXP(-5*tt)*(2*tt+1)+2*EXP(-4*tt)*(tt*COS(3*tt)-SIN(3*tt)) -> -0.005151820739 | E65: =EXP(-4*tt)*3*(COS(3*tt)+tt*SIN(3*tt)) -> -0.03898710639 | F65: =EXP(-4*tt)*(tt*COS(3*tt)-SIN(3*tt)) -> -0.007746124765
B66: =B65+deltat -> 1.178097245 | C66: =EXP(-5*tt)*2 -> 0.005531263299 | D66: =EXP(-5*tt)*(2*tt+1)+2*EXP(-4*tt)*(tt*COS(3*tt)-SIN(3*tt)) -> -0.003397675018 | E66: =EXP(-4*tt)*3*(COS(3*tt)+tt*SIN(3*tt)) -> -0.03704847101 | F66: =EXP(-4*tt)*(tt*COS(3*tt)-SIN(3*tt)) -> -0.006339836361
B67: =B66+deltat -> 1.202640938 | C67: =EXP(-5*tt)*2 -> 0.004892472361 | D67: =EXP(-5*tt)*(2*tt+1)+2*EXP(-4*tt)*(tt*COS(3*tt)-SIN(3*tt)) -> -0.001842719507 | E67: =EXP(-4*tt)*3*(COS(3*tt)+tt*SIN(3*tt)) -> -0.03503100084 | F67: =EXP(-4*tt)*(tt*COS(3*tt)-SIN(3*tt)) -> -0.005086421618
B68: =B67+deltat -> 1.22718463 | C68: =EXP(-5*tt)*2 -> 0.004327453696 | D68: =EXP(-5*tt)*(2*tt+1)+2*EXP(-4*tt)*(tt*COS(3*tt)-SIN(3*tt)) -> -0.0004757131317 | E68: =EXP(-4*tt)*3*(COS(3*tt)+tt*SIN(3*tt)) -> -0.03296622872 | F68: =EXP(-4*tt)*(tt*COS(3*tt)-SIN(3*tt)) -> -0.003975012322
B69: =B68+deltat -> 1.251728323 | C69: =EXP(-5*tt)*2 -> 0.003827687538 | D69: =EXP(-5*tt)*(2*tt+1)+2*EXP(-4*tt)*(tt*COS(3*tt)-SIN(3*tt)) -> 0.0007150033999 | E69: =EXP(-4*tt)*3*(COS(3*tt)+tt*SIN(3*tt)) -> -0.0308815322 | F69: =EXP(-4*tt)*(tt*COS(3*tt)-SIN(3*tt)) -> -0.002995032636
B70: =B69+deltat -> 1.276272016 | C70: =EXP(-5*tt)*2 -> 0.00338563805 | D70: =EXP(-5*tt)*(2*tt+1)+2*EXP(-4*tt)*(tt*COS(3*tt)-SIN(3*tt)) -> 0.001741324226 | E70: =EXP(-4*tt)*3*(COS(3*tt)+tt*SIN(3*tt)) -> -0.02880048054 | F70: =EXP(-4*tt)*(tt*COS(3*tt)-SIN(3*tt)) -> -0.002136244949
B71: =B70+deltat -> 1.300815708 | C71: =EXP(-5*tt)*2 -> 0.002994639685 | D71: =EXP(-5*tt)*(2*tt+1)+2*EXP(-4*tt)*(tt*COS(3*tt)-SIN(3*tt)) -> 0.002615218541 | E71: =EXP(-4*tt)*3*(COS(3*tt)+tt*SIN(3*tt)) -> -0.02674316456 | F71: =EXP(-4*tt)*(tt*COS(3*tt)-SIN(3*tt)) -> -0.001388787822
B72: =B71+deltat -> 1.325359401 | C72: =EXP(-5*tt)*2 -> 0.002648796685 | D72: =EXP(-5*tt)*(2*tt+1)+2*EXP(-4*tt)*(tt*COS(3*tt)-SIN(3*tt)) -> 0.003348592648 | E72: =EXP(-4*tt)*3*(COS(3*tt)+tt*SIN(3*tt)) -> -0.02472650937 | F72: =EXP(-4*tt)*(tt*COS(3*tt)-SIN(3*tt)) -> -0.0007432066409
B73: =B72+deltat -> 1.349903093 | C73: =EXP(-5*tt)*2 -> 0.002342894177 | D73: =EXP(-5*tt)*(2*tt+1)+2*EXP(-4*tt)*(tt*COS(3*tt)-SIN(3*tt)) -> 0.003953172157 | E73: =EXP(-4*tt)*3*(COS(3*tt)+tt*SIN(3*tt)) -> -0.02276457046 | F73: =EXP(-4*tt)*(tt*COS(3*tt)-SIN(3*tt)) -> -0.0001904775143
B74: =B73+deltat -> 1.374446786 | C74: =EXP(-5*tt)*2 -> 0.002072319538 | D74: =EXP(-5*tt)*(2*tt+1)+2*EXP(-4*tt)*(tt*COS(3*tt)-SIN(3*tt)) -> 0.004440402694 | E74: =EXP(-4*tt)*3*(COS(3*tt)+tt*SIN(3*tt)) -> -0.02086881314 | F74: =EXP(-4*tt)*(tt*COS(3*tt)-SIN(3*tt)) -> 0.0002779749978
B75: =B74+deltat -> 1.398990479 | C75: =EXP(-5*tt)*2 -> 0.001832992848 | D75: =EXP(-5*tt)*(2*tt+1)+2*EXP(-4*tt)*(tt*COS(3*tt)-SIN(3*tt)) -> 0.004821367556 | E75: =EXP(-4*tt)*3*(COS(3*tt)+tt*SIN(3*tt)) -> -0.01904837569 | F75: =EXP(-4*tt)*(tt*COS(3*tt)-SIN(3*tt)) -> 0.0006702657955
B76: =B75+deltat -> 1.423534171 | C76: =EXP(-5*tt)*2 -> 0.001621305362 | D76: =EXP(-5*tt)*(2*tt+1)+2*EXP(-4*tt)*(tt*COS(3*tt)-SIN(3*tt)) -> 0.005106720771 | E76: =EXP(-4*tt)*3*(COS(3*tt)+tt*SIN(3*tt)) -> -0.0173103164 | F76: =EXP(-4*tt)*(tt*COS(3*tt)-SIN(3*tt)) -> 0.0009940422529
B77: =B76+deltat -> 1.448077864 | C77: =EXP(-5*tt)*2 -> 0.001434065103 | D77: =EXP(-5*tt)*(2*tt+1)+2*EXP(-4*tt)*(tt*COS(3*tt)-SIN(3*tt)) -> 0.005306634124 | E77: =EXP(-4*tt)*3*(COS(3*tt)+tt*SIN(3*tt)) -> -0.0156598447 | F77: =EXP(-4*tt)*(tt*COS(3*tt)-SIN(3*tt)) -> 0.001256481821
B78: =B77+deltat -> 1.472621556 | C78: =EXP(-5*tt)*2 -> 0.001268448725 | D78: =EXP(-5*tt)*(2*tt+1)+2*EXP(-4*tt)*(tt*COS(3*tt)-SIN(3*tt)) -> 0.005430756736 | E78: =EXP(-4*tt)*3*(COS(3*tt)+tt*SIN(3*tt)) -> -0.01410053682 | F78: =EXP(-4*tt)*(tt*COS(3*tt)-SIN(3*tt)) -> 0.001464293718
B79: =B78+deltat -> 1.497165249 | C79: =EXP(-5*tt)*2 -> 0.001121958944 | D79: =EXP(-5*tt)*(2*tt+1)+2*EXP(-4*tt)*(tt*COS(3*tt)-SIN(3*tt)) -> 0.005488185888 | E79: =EXP(-4*tt)*3*(COS(3*tt)+tt*SIN(3*tt)) -> -0.01263453618 | F79: =EXP(-4*tt)*(tt*COS(3*tt)-SIN(3*tt)) -> 0.001623724237
B80: =B79+deltat -> 1.521708942 | C80: =EXP(-5*tt)*2 -> 0.0009923868794 | D80: =EXP(-5*tt)*(2*tt+1)+2*EXP(-4*tt)*(tt*COS(3*tt)-SIN(3*tt)) -> 0.005487447821 | E80: =EXP(-4*tt)*3*(COS(3*tt)+tt*SIN(3*tt)) -> -0.01126273897 | F80: =EXP(-4*tt)*(tt*COS(3*tt)-SIN(3*tt)) -> 0.001740565197
B81: =B80+deltat -> 1.546252634 | C81: =EXP(-5*tt)*2 -> 0.000877778749 | D81: =EXP(-5*tt)*(2*tt+1)+2*EXP(-4*tt)*(tt*COS(3*tt)-SIN(3*tt)) -> 0.005436487324 | E81: =EXP(-4*tt)*3*(COS(3*tt)+tt*SIN(3*tt)) -> -0.00998496532 | F81: =EXP(-4*tt)*(tt*COS(3*tt)-SIN(3*tt)) -> 0.001820165123
B82: =B81+deltat -> 1.570796327 | C82: =EXP(-5*tt)*2 -> 0.0007764064079 | D82: =EXP(-5*tt)*(2*tt+1)+2*EXP(-4*tt)*(tt*COS(3*tt)-SIN(3*tt)) -> 0.005342665001 | E82: =EXP(-4*tt)*3*(COS(3*tt)+tt*SIN(3*tt)) -> -0.00880011655 | F82: =EXP(-4*tt)*(tt*COS(3*tt)-SIN(3*tt)) -> 0.001867442732
B83: =B82+deltat -> 1.595340019 | C83: =EXP(-5*tt)*2 -> 0.0006867412897 | D83: =EXP(-5*tt)*(2*tt+1)+2*EXP(-4*tt)*(tt*COS(3*tt)-SIN(3*tt)) -> 0.005212761173 | E83: =EXP(-4*tt)*3*(COS(3*tt)+tt*SIN(3*tt)) -> -0.007706318974 | F83: =EXP(-4*tt)*(tt*COS(3*tt)-SIN(3*tt)) -> 0.001886902333
B84: =B83+deltat -> 1.619883712 | C84: =EXP(-5*tt)*2 -> 0.0006074313584 | D84: =EXP(-5*tt)*(2*tt+1)+2*EXP(-4*tt)*(tt*COS(3*tt)-SIN(3*tt)) -> 0.00505298545 | E84: =EXP(-4*tt)*3*(COS(3*tt)+tt*SIN(3*tt)) -> -0.006701054823 | F84: =EXP(-4*tt)*(tt*COS(3*tt)-SIN(3*tt)) -> 0.001882650804
B85: =B84+deltat -> 1.644427405 | C85: =EXP(-5*tt)*2 -> 0.0005372807208 | D85: =EXP(-5*tt)*(2*tt+1)+2*EXP(-4*tt)*(tt*COS(3*tt)-SIN(3*tt)) -> 0.00486899108 | E85: =EXP(-4*tt)*3*(COS(3*tt)+tt*SIN(3*tt)) -> -0.005781280858 | F85: =EXP(-4*tt)*(tt*COS(3*tt)-SIN(3*tt)) -> 0.001858415789
B86: =B85+deltat -> 1.668971097 | C86: =EXP(-5*tt)*2 -> 0.0004752315944 | D86: =EXP(-5*tt)*(2*tt+1)+2*EXP(-4*tt)*(tt*COS(3*tt)-SIN(3*tt)) -> 0.004665893245 | E86: =EXP(-4*tt)*3*(COS(3*tt)+tt*SIN(3*tt)) -> -0.004943535256 | F86: =EXP(-4*tt)*(tt*COS(3*tt)-SIN(3*tt)) -> 0.001817564826
B87: =B86+deltat -> 1.69351479 | C87: =EXP(-5*tt)*2 -> 0.0004203483572 | D87: =EXP(-5*tt)*(2*tt+1)+2*EXP(-4*tt)*(tt*COS(3*tt)-SIN(3*tt)) -> 0.004448290567 | E87: =EXP(-4*tt)*3*(COS(3*tt)+tt*SIN(3*tt)) -> -0.004184033397 | F87: =EXP(-4*tt)*(tt*COS(3*tt)-SIN(3*tt)) -> 0.001763125114
B88: =B87+deltat -> 1.718058482 | C88: =EXP(-5*tt)*2 -> 0.0003718034396 | D88: =EXP(-5*tt)*(2*tt+1)+2*EXP(-4*tt)*(tt*COS(3*tt)-SIN(3*tt)) -> 0.004220289134 | E88: =EXP(-4*tt)*3*(COS(3*tt)+tt*SIN(3*tt)) -> -0.003498753173 | F88: =EXP(-4*tt)*(tt*COS(3*tt)-SIN(3*tt)) -> 0.001697803681
B89: =B88+deltat -> 1.742602175 | C89: =EXP(-5*tt)*2 -> 0.0003288648458 | D89: =EXP(-5*tt)*(2*tt+1)+2*EXP(-4*tt)*(tt*COS(3*tt)-SIN(3*tt)) -> 0.003985528434 | E89: =EXP(-4*tt)*3*(COS(3*tt)+tt*SIN(3*tt)) -> -0.002883510466 | F89: =EXP(-4*tt)*(tt*COS(3*tt)-SIN(3*tt)) -> 0.001624007708
B90: =B89+deltat -> 1.767145868 | C90: =EXP(-5*tt)*2 -> 0.0002908851164 | D90: =EXP(-5*tt)*(2*tt+1)+2*EXP(-4*tt)*(tt*COS(3*tt)-SIN(3*tt)) -> 0.003747208652 | E90: =EXP(-4*tt)*3*(COS(3*tt)+tt*SIN(3*tt)) -> -0.002334025425 | F90: =EXP(-4*tt)*(tt*COS(3*tt)-SIN(3*tt)) -> 0.001543864831
B91: =B90+deltat -> 1.79168956 | C91: =EXP(-5*tt)*2 -> 0.0002572915653 | D91: =EXP(-5*tt)*(2*tt+1)+2*EXP(-4*tt)*(tt*COS(3*tt)-SIN(3*tt)) -> 0.003508118834 | E91: =EXP(-4*tt)*3*(COS(3*tt)+tt*SIN(3*tt)) -> -0.00184598019 | F91: =EXP(-4*tt)*(tt*COS(3*tt)-SIN(3*tt)) -> 0.00145924322
B92: =B91+deltat -> 1.816233253 | C92: =EXP(-5*tt)*2 -> 0.0002275776444 | D92: =EXP(-5*tt)*(2*tt+1)+2*EXP(-4*tt)*(tt*COS(3*tt)-SIN(3*tt)) -> 0.003270665502 | E92: =EXP(-4*tt)*3*(COS(3*tt)+tt*SIN(3*tt)) -> -0.001415068688 | F92: =EXP(-4*tt)*(tt*COS(3*tt)-SIN(3*tt)) -> 0.001371771297
B93: =B92+deltat -> 1.840776945 | C93: =EXP(-5*tt)*2 -> 0.0002012953054 | D93: =EXP(-5*tt)*(2*tt+1)+2*EXP(-4*tt)*(tt*COS(3*tt)-SIN(3*tt)) -> 0.003036901324 | E93: =EXP(-4*tt)*3*(COS(3*tt)+tt*SIN(3*tt)) -> -0.001037039133 | F93: =EXP(-4*tt)*(tt*COS(3*tt)-SIN(3*tt)) -> 0.001282856957
B94: =B93+deltat -> 1.865320638 | C94: =EXP(-5*tt)*2 -> 0.0001780482442 | D94: =EXP(-5*tt)*(2*tt+1)+2*EXP(-4*tt)*(tt*COS(3*tt)-SIN(3*tt)) -> 0.002808553548 | E94: =EXP(-4*tt)*3*(COS(3*tt)+tt*SIN(3*tt)) -> -0.000707729816 | F94: =EXP(-4*tt)*(tt*COS(3*tt)-SIN(3*tt)) -> 0.001193706181
B95: =B94+deltat -> 1.889864331 | C95: =EXP(-5*tt)*2 -> 0.0001574859244 | D95: =EXP(-5*tt)*(2*tt+1)+2*EXP(-4*tt)*(tt*COS(3*tt)-SIN(3*tt)) -> 0.002587051891 | E95: =EXP(-4*tt)*3*(COS(3*tt)+tt*SIN(3*tt)) -> -0.0004230988016 | F95: =EXP(-4*tt)*(tt*COS(3*tt)-SIN(3*tt)) -> 0.001105340949
B96: =B95+deltat -> 1.914408023 | C96: =EXP(-5*tt)*2 -> 0.0001392982924 | D96: =EXP(-5*tt)*(2*tt+1)+2*EXP(-4*tt)*(tt*COS(3*tt)-SIN(3*tt)) -> 0.002373555681 | E96: =EXP(-4*tt)*3*(COS(3*tt)+tt*SIN(3*tt)) -> -0.0001792480699 | F96: =EXP(-4*tt)*(tt*COS(3*tt)-SIN(3*tt)) -> 0.001018616383
B97: =B96+deltat -> 1.938951716 | C97: =EXP(-5*tt)*2 -> 0.0001232111018 | D97: =EXP(-5*tt)*(2*tt+1)+2*EXP(-4*tt)*(tt*COS(3*tt)-SIN(3*tt)) -> 0.002168980044 | E97: =EXP(-4*tt)*3*(COS(3*tt)+tt*SIN(3*tt)) -> 2.755733279e-05 | F97: =EXP(-4*tt)*(tt*COS(3*tt)-SIN(3*tt)) -> 0.000934237058
B98: =B97+deltat -> 1.963495408 | C98: =EXP(-5*tt)*2 -> 0.0001089817782 | D98: =EXP(-5*tt)*(2*tt+1)+2*EXP(-4*tt)*(tt*COS(3*tt)-SIN(3*tt)) -> 0.001974020995 | E98: =EXP(-4*tt)*3*(COS(3*tt)+tt*SIN(3*tt)) -> 0.0002008746261 | F98: =EXP(-4*tt)*(tt*COS(3*tt)-SIN(3*tt)) -> 0.0008527724426
B99: =B98+deltat -> 1.988039101 | C99: =EXP(-5*tt)*2 -> 9.639576152e-05 | D99: =EXP(-5*tt)*(2*tt+1)+2*EXP(-4*tt)*(tt*COS(3*tt)-SIN(3*tt)) -> 0.00178917931 | E99: =EXP(-4*tt)*3*(COS(3*tt)+tt*SIN(3*tt)) -> 0.0003440726169 | F99: =EXP(-4*tt)*(tt*COS(3*tt)-SIN(3*tt)) -> 0.0007746714429
B100: =B99+deltat -> 2.012582794 | C100: =EXP(-5*tt)*2 -> 8.526327052e-05 | D100: =EXP(-5*tt)*(2*tt+1)+2*EXP(-4*tt)*(tt*COS(3*tt)-SIN(3*tt)) -> 0.001614783085 | E100: =EXP(-4*tt)*3*(COS(3*tt)+tt*SIN(3*tt)) -> 0.0004603245475 | F100: =EXP(-4*tt)*(tt*COS(3*tt)-SIN(3*tt)) -> 0.0007002760292
B101: =B100+deltat -> 2.037126486 | C101: =EXP(-5*tt)*2 -> 7.54164414e-05 | D101: =EXP(-5*tt)*(2*tt+1)+2*EXP(-4*tt)*(tt*COS(3*tt)-SIN(3*tt)) -> 0.00145100894 | E101: =EXP(-4*tt)*3*(COS(3*tt)+tt*SIN(3*tt)) -> 0.0005526040373 | F101: =EXP(-4*tt)*(tt*COS(3*tt)-SIN(3*tt)) -> 0.0006298339447
B102: =B101+deltat -> 2.061670179 | C102: =EXP(-5*tt)*2 -> 6.670679648e-05 | D102: =EXP(-5*tt)*(2*tt+1)+2*EXP(-4*tt)*(tt*COS(3*tt)-SIN(3*tt)) -> 0.001297901808 | E102: =EXP(-4*tt)*3*(COS(3*tt)+tt*SIN(3*tt)) -> 0.0006236837135 | F102: =EXP(-4*tt)*(tt*COS(3*tt)-SIN(3*tt)) -> 0.0005635104982
B103: =B102+deltat -> 2.086213872 | C103: =EXP(-5*tt)*2 -> 5.900300536e-05 | D103: =EXP(-5*tt)*(2*tt+1)+2*EXP(-4*tt)*(tt*COS(3*tt)-SIN(3*tt)) -> 0.001155393301 | E103: =EXP(-4*tt)*3*(COS(3*tt)+tt*SIN(3*tt)) -> 0.0006761361554 | F103: =EXP(-4*tt)*(tt*COS(3*tt)-SIN(3*tt)) -> 0.000501399455
B104: =B103+deltat -> 2.110757564 | C104: =EXP(-5*tt)*2 -> 5.218890466e-05 | D104: =EXP(-5*tt)*(2*tt+1)+2*EXP(-4*tt)*(tt*COS(3*tt)-SIN(3*tt)) -> 0.001023318669 | E104: =EXP(-4*tt)*3*(COS(3*tt)+tt*SIN(3*tt)) -> 0.0007123368075 | F104: =EXP(-4*tt)*(tt*COS(3*tt)-SIN(3*tt)) -> 0.0004435330457
B105: =B104+deltat -> 2.135301257 | C105: =EXP(-5*tt)*2 -> 4.616174639e-05 | D105: =EXP(-5*tt)*(2*tt+1)+2*EXP(-4*tt)*(tt*COS(3*tt)-SIN(3*tt)) -> 0.0009014323454 | E105: =EXP(-4*tt)*3*(COS(3*tt)+tt*SIN(3*tt)) -> 0.0007344685435 | F105: =EXP(-4*tt)*(tt*COS(3*tt)-SIN(3*tt)) -> 0.0003898911186
B106: =B105+deltat -> 2.159844949 | C106: =EXP(-5*tt)*2 -> 4.083064865e-05 | D106: =EXP(-5*tt)*(2*tt+1)+2*EXP(-4*tt)*(tt*COS(3*tt)-SIN(3*tt)) -> 0.0007894221275 | E106: =EXP(-4*tt)*3*(COS(3*tt)+tt*SIN(3*tt)) -> 0.0007445275922 | F106: =EXP(-4*tt)*(tt*COS(3*tt)-SIN(3*tt)) -> 0.0003404094665

Sheet Sheet2

Sheet Sheet3
